Workbook

Sheet Vista Principal
C2: Calculadora de Seguros PP - Scotiabank
B7: 1) Establecer los datos del préstamos
B9: Producto | C9: Préstamos Personales (LD Y PA) (Clientes)
B10: Tipo de Seguro | C10: Seguro de Desgravamen | D10: Seleccionar
B11: Tarifa | C11: TARIFA TITULAR | D11: Seleccionar
B12: Monto inicial | C12: 20,000.00 | D12: Digitar
B13: Seguro Desempleo | C13: 0.000% | D13: Digitar en caso aplique
B14: Monto adicional desempleo | C14: =+H17 -> 0
B15: Prima de Seguro de Desgravamen/Vida | C15: =IF(C10="Seguro de vida",'Proceso Prima de Seguro'!D13, IF(AND(C10="Sin Seguro (Solo LD Garantía Liquida)",C9="Préstamos Personales (LD Garantía Liquida)"),0%, 'Proceso Prima de Seguro'!H16)) -> 2.7520%
B16: Monto adicional del Seguro | C16: =+C15*C12 -> 550.40 | G16: MAF SIN SEGURO | H16: MONTO SEGURO DESEMNPLEO | I16: MAF CON DESEMBPLEP
B17: MAF Inicial | C17: =+I17 -> 20,550.40 | G17: =+C12+C16 -> 20550.40 | H17: =+G17*C13 -> 0 | I17: =+H17+G17 -> 20,550.40
B18: Empleado | C18: si
B19: Moneda | C19: Soles | D19: Seleccionar
B20: Plazo Remanente | C20: 24 | D20: Digitar
B21: Fecha de Desembolso | C21: 2023-09-07
B22: Fecha de 1er Pago | C22: 2023-10-07 | D22: Digitar
B23: Cuota Julio | C23: 1 | D23: Digitar 2 en caso de cuota doble
B24: Cuota Diciembre | C24: 1 | D24: Digitar 2 en caso de cuota doble
B25: TEA | C25: 40.000% | D25: Digitar
B26: TEA TOTAL | C26: =+C25 -> 40.000%
B27: Monto del Bien | C27: 0
B28: Seguro del Bien | C28: 0.000%
B29: Portes | C29: 0 | D29: Digitar
B30: Cuota | C30: =(C17+(C28*C27+C29)*P34)/O34 -> 1,198.82
B31: 2) Calcular TCEA presionando el botón
B32: TCEA | C32: 44.11% | F32: *Borrar la TCEA para volver a calcular
U33: =C17-U34-C14-C16 -> 0
O34: =SUM(O36:O395) -> 17.14 | P34: =SUM(P36:P395) -> 17.14 | U34: =SUM(U36:U395) -> 20,000.00
B35: N° Cuota | C35: Fecha de pago | D35: Día | E35: Fecha de pago | F35: Días | G35: Dias Acumulados | H35: Saldo Inicial | I35: Amortización | J35: Interés | K35: Seguro del Bien | L35: Portes | M35: Cuota Constante | N35: Saldo Final | O35: Factor Cronograma | P35: Factor Cronograma 2 | R35: Vector i,1 Cuota | S35: Vector i,2 Días Acum | T35: Vector i,3 Factor | U35: Vector i,4 Calculo VA
B36: 1 | C36: =C22 -> 2023-10-07 | D36: =IF(B36<=$C$20,WEEKDAY(C36,2),"") -> 6 | E36: =IF(D36=7,C36+1,C36) -> 2023-10-07 | F36: =E36-C21 -> 30 | G36: =F36 -> 30 | H36: =C17 -> 20,550.40 | I36: =IF(B36>C$20,"",M36-L36-K36-J36) -> 614.45 | J36: =IF(B36>C$20,"",((1+C$25)^(F36/360)-1)*H36) -> 584.37 | K36: =IF(B36>C$20,"",C$27*C$28) -> 0.00 | L36: =IF(B36>C$20,"",C$29) -> 0 | M36: =IF(B36>C$20,"",IF(B36=C$20,H36+J36+K36+L36,IF(AND(C$23=2,MONTH(E36)=7),2*C$30,IF(AND(C$24=2,MONTH(E36)=12),2*C$30,C$30)))) -> 1,198.82 | N36: =IF(B36>C$20,"",H36-I36) -> 19,935.95 | O36: =IFERROR(IF(AND(MONTH(E36)=7,C$23=2),2/(1+C$26)^(G36/360),IF(AND(MONTH(E36)=12,C$24=2),2/(1+C$26)^(G36/360),1/(1+C$26)^(G36/360))),"") -> 0.97 | P36: =IFERROR(1/(1+C$26)^(G36/360),"") -> 0.97 | R36: =IFERROR(I36+J36+K36+L36,"") -> 1,198.82 | S36: =G36 -> 30 | T36: =IFERROR((1+C$32)^(S36/360),"") -> 1.03 | U36: =IFERROR(ROUND(R36/T36,2),"") -> 1,162.87
B37: 2 | C37: =IF(B37>$C$20,"",EDATE(C36,1)) -> 2023-11-07 | D37: 2 | E37: =IF(D37=7,C37+1,C37) -> 2023-11-07 | F37: =IF(B37>C$20,"",E37-E36) -> 31 | G37: =IFERROR(F37+G36,"") -> 61 | H37: =IF(B37>C$20,"",N36) -> 19,935.95 | I37: =IF(B37>C$20,"",M37-L37-K37-J37) -> 612.75 | J37: 586.07 | K37: 0.00 | L37: 0 | M37: =IF(B37>C$20,"",IF(B37=C$20,H37+J37+K37+L37,IF(AND(C$23=2,MONTH(E37)=7),2*C$30,IF(AND(C$24=2,MONTH(E37)=12),2*C$30,C$30)))) -> 1,198.82 | N37: 19,323.21 | O37: 0.94 | P37: 0.94 | R37: =IFERROR(I37+J37+K37+L37,"") -> 1,198.82 | S37: 61 | T37: 1.06 | U37: 1,126.85
B38: 3 | C38: 2023-12-07 | D38: 4 | E38: 2023-12-07 | F38: 30 | G38: 91 | H38: 19,323.21 | I38: 649.34 | J38: 549.48 | K38: 0.00 | L38: 0 | M38: 1,198.82 | N38: 18,673.86 | O38: 0.92 | P38: 0.92 | R38: 1,198.82 | S38: 91 | T38: 1.10 | U38: 1,093.05
B39: 4 | C39: 2024-01-07 | D39: 7 | E39: 2024-01-08 | F39: 32 | G39: 123 | H39: 18,673.86 | I39: 631.88 | J39: 566.95 | K39: 0.00 | L39: 0 | M39: 1,198.82 | N39: 18,041.99 | O39: 0.89 | P39: 0.89 | R39: 1,198.82 | S39: 123 | T39: 1.13 | U39: 1,058.12
B40: 5 | C40: 2024-02-07 | D40: 3 | E40: 2024-02-07 | F40: 30 | G40: 153 | H40: 18,041.99 | I40: 685.78 | J40: 513.04 | K40: 0.00 | L40: 0 | M40: 1,198.82 | N40: 17,356.21 | O40: 0.87 | P40: 0.87 | R40: 1,198.82 | S40: 153 | T40: 1.17 | U40: 1,026.38
B41: 6 | C41: 2024-03-07 | D41: 4 | E41: 2024-03-07 | F41: 29 | G41: 182 | H41: 17,356.21 | I41: 721.95 | J41: 476.87 | K41: 0.00 | L41: 0 | M41: 1,198.82 | N41: 16,634.26 | O41: 0.84 | P41: 0.84 | R41: 1,198.82 | S41: 182 | T41: 1.20 | U41: 996.61
B42: 7 | C42: 2024-04-07 | D42: 7 | E42: 2024-04-08 | F42: 32 | G42: 214 | H42: 16,634.26 | I42: 693.80 | J42: 505.02 | K42: 0.00 | L42: 0 | M42: 1,198.82 | N42: 15,940.46 | O42: 0.82 | P42: 0.82 | R42: 1,198.82 | S42: 214 | T42: 1.24 | U42: 964.76
B43: 8 | C43: 2024-05-07 | D43: 2 | E43: 2024-05-07 | F43: 29 | G43: 243 | H43: 15,940.46 | I43: 760.85 | J43: 437.97 | K43: 0.00 | L43: 0 | M43: 1,198.82 | N43: 15,179.61 | O43: 0.80 | P43: 0.80 | R43: 1,198.82 | S43: 243 | T43: 1.28 | U43: 936.78
B44: 9 | C44: 2024-06-07 | D44: 5 | E44: 2024-06-07 | F44: 31 | G44: 274 | H44: 15,179.61 | I44: 752.57 | J44: 446.25 | K44: 0.00 | L44: 0 | M44: 1,198.82 | N44: 14,427.04 | O44: 0.77 | P44: 0.77 | R44: 1,198.82 | S44: 274 | T44: 1.32 | U44: 907.76
B45: 10 | C45: 2024-07-07 | D45: 7 | E45: 2024-07-08 | F45: 31 | G45: 305 | H45: 14,427.04 | I45: 774.70 | J45: 424.12 | K45: 0.00 | L45: 0 | M45: 1,198.82 | N45: 13,652.34 | O45: 0.75 | P45: 0.75 | R45: 1,198.82 | S45: 305 | T45: 1.36 | U45: 879.64
B46: 11 | C46: 2024-08-07 | D46: 3 | E46: 2024-08-07 | F46: 30 | G46: 335 | H46: 13,652.34 | I46: 810.60 | J46: 388.22 | K46: 0.00 | L46: 0 | M46: 1,198.82 | N46: 12,841.74 | O46: 0.73 | P46: 0.73 | R46: 1,198.82 | S46: 335 | T46: 1.40 | U46: 853.26
B47: 12 | C47: 2024-09-07 | D47: 6 | E47: 2024-09-07 | F47: 31 | G47: 366 | H47: 12,841.74 | I47: 821.30 | J47: 377.52 | K47: 0.00 | L47: 0 | M47: 1,198.82 | N47: 12,020.44 | O47: 0.71 | P47: 0.71 | R47: 1,198.82 | S47: 366 | T47: 1.45 | U47: 826.83
B48: 13 | C48: 2024-10-07 | D48: 1 | E48: 2024-10-07 | F48: 30 | G48: 396 | H48: 12,020.44 | I48: 857.01 | J48: 341.82 | K48: 0.00 | L48: 0 | M48: 1,198.82 | N48: 11,163.43 | O48: 0.69 | P48: 0.69 | R48: 1,198.82 | S48: 396 | T48: 1.49 | U48: 802.03
B49: 14 | C49: 2024-11-07 | D49: 4 | E49: 2024-11-07 | F49: 31 | G49: 427 | H49: 11,163.43 | I49: 870.64 | J49: 328.18 | K49: 0.00 | L49: 0 | M49: 1,198.82 | N49: 10,292.79 | O49: 0.67 | P49: 0.67 | R49: 1,198.82 | S49: 427 | T49: 1.54 | U49: 777.19
B50: 15 | C50: 2024-12-07 | D50: 6 | E50: 2024-12-07 | F50: 30 | G50: 457 | H50: 10,292.79 | I50: 906.13 | J50: 292.69 | K50: 0.00 | L50: 0 | M50: 1,198.82 | N50: 9,386.66 | O50: 0.65 | P50: 0.65 | R50: 1,198.82 | S50: 457 | T50: 1.59 | U50: 753.88
B51: 16 | C51: 2025-01-07 | D51: 2 | E51: 2025-01-07 | F51: 31 | G51: 488 | H51: 9,386.66 | I51: 922.87 | J51: 275.95 | K51: 0.00 | L51: 0 | M51: 1,198.82 | N51: 8,463.78 | O51: 0.63 | P51: 0.63 | R51: 1,198.82 | S51: 488 | T51: 1.64 | U51: 730.53
B52: 17 | C52: 2025-02-07 | D52: 5 | E52: 2025-02-07 | F52: 31 | G52: 519 | H52: 8,463.78 | I52: 950.00 | J52: 248.82 | K52: 0.00 | L52: 0 | M52: 1,198.82 | N52: 7,513.78 | O52: 0.62 | P52: 0.62 | R52: 1,198.82 | S52: 519 | T52: 1.69 | U52: 707.90
B53: 18 | C53: 2025-03-07 | D53: 5 | E53: 2025-03-07 | F53: 28 | G53: 547 | H53: 7,513.78 | I53: 999.59 | J53: 199.23 | K53: 0.00 | L53: 0 | M53: 1,198.82 | N53: 6,514.19 | O53: 0.60 | P53: 0.60 | R53: 1,198.82 | S53: 547 | T53: 1.74 | U53: 688.06
B54: 19 | C54: 2025-04-07 | D54: 1 | E54: 2025-04-07 | F54: 31 | G54: 578 | H54: 6,514.19 | I54: 1,007.32 | J54: 191.50 | K54: 0.00 | L54: 0 | M54: 1,198.82 | N54: 5,506.87 | O54: 0.58 | P54: 0.58 | R54: 1,198.82 | S54: 578 | T54: 1.80 | U54: 666.75
B55: 20 | C55: 2025-05-07 | D55: 3 | E55: 2025-05-07 | F55: 30 | G55: 608 | H55: 5,506.87 | I55: 1,042.23 | J55: 156.59 | K55: 0.00 | L55: 0 | M55: 1,198.82 | N55: 4,464.65 | O55: 0.57 | P55: 0.57 | R55: 1,198.82 | S55: 608 | T55: 1.85 | U55: 646.75
B56: 21 | C56: 2025-06-07 | D56: 6 | E56: 2025-06-07 | F56: 31 | G56: 639 | H56: 4,464.65 | I56: 1,067.57 | J56: 131.25 | K56: 0.00 | L56: 0 | M56: 1,198.82 | N56: 3,397.08 | O56: 0.55 | P56: 0.55 | R56: 1,198.82 | S56: 639 | T56: 1.91 | U56: 626.72
B57: 22 | C57: 2025-07-07 | D57: 1 | E57: 2025-07-07 | F57: 30 | G57: 669 | H57: 3,397.08 | I57: 1,102.22 | J57: 96.60 | K57: 0.00 | L57: 0 | M57: 1,198.82 | N57: 2,294.85 | O57: 0.54 | P57: 0.54 | R57: 1,198.82 | S57: 669 | T57: 1.97 | U57: 607.92
B58: 23 | C58: 2025-08-07 | D58: 4 | E58: 2025-08-07 | F58: 31 | G58: 700 | H58: 2,294.85 | I58: 1,131.36 | J58: 67.46 | K58: 0.00 | L58: 0 | M58: 1,198.82 | N58: 1,163.50 | O58: 0.52 | P58: 0.52 | R58: 1,198.82 | S58: 700 | T58: 2.04 | U58: 589.09
B59: 24 | C59: 2025-09-07 | D59: 7 | E59: 2025-09-08 | F59: 32 | G59: 732 | H59: 1,163.50 | I59: 1,163.50 | J59: 35.32 | K59: 0.00 | L59: 0 | M59: 1,198.82 | N59: 0 | O59: 0.50 | P59: 0.50 | R59: 1,198.82 | S59: 732 | T59: 2.10 | U59: 570.27
B60: 25
B61: 26
B62: 27
B63: 28
B64: 29
B65: 30
B66: 31
B67: 32
B68: 33
B69: 34
B70: 35
B71: 36
B72: 37
B73: 38
B74: 39
B75: 40
B76: 41
B77: 42
B78: 43
B79: 44
B80: 45
B81: 46
B82: 47
B83: 48
B84: 49
B85: 50
B86: 51
B87: 52
B88: 53
B89: 54
B90: 55
B91: 56
B92: 57
B93: 58
B94: 59
B95: 60
B96: 61
B97: 62
B98: 63
B99: 64
B100: 65 | D100: =IF(B100<=$C$20,WEEKDAY(C100,2),"") ->  | J100: =IF(B100>C$20,"",((1+C$25)^(F100/360)-1)*H100) ->  | K100: =IF(B100>C$20,"",C$27*C$28) ->  | L100: =IF(B100>C$20,"",C$29) ->  | N100: =IF(B100>C$20,"",H100-I100) ->  | O100: =IFERROR(IF(AND(MONTH(E100)=7,C$23=2),2/(1+C$26)^(G100/360),IF(AND(MONTH(E100)=12,C$24=2),2/(1+C$26)^(G100/360),1/(1+C$26)^(G100/360))),"") ->  | P100: =IFERROR(1/(1+C$26)^(G100/360),"") ->  | S100: =G100 ->  | T100: =IFERROR((1+C$32)^(S100/360),"") ->  | U100: =IFERROR(ROUND(R100/T100,2),"") -> 
B101: 66 | C101: =IF(B101>$C$20,"",EDATE(C100,1)) ->  | E101: =IF(D101=7,C101+1,C101) ->  | F101: =IF(B101>C$20,"",E101-E100) ->  | G101: =IFERROR(F101+G100,"") ->  | H101: =IF(B101>C$20,"",N100) ->  | I101: =IF(B101>C$20,"",M101-L101-K101-J101) ->  | M101: =IF(B101>C$20,"",IF(B101=C$20,H101+J101+K101+L101,IF(AND(C$23=2,MONTH(E101)=7),2*C$30,IF(AND(C$24=2,MONTH(E101)=12),2*C$30,C$30)))) ->  | R101: =IFERROR(I101+J101+K101+L101,"") -> 
B102: 67
B103: 68
B104: 69
B105: 70
B106: 71
B107: 72
B108: 73
B109: 74
B110: 75
B111: 76
B112: 77
B113: 78
B114: 79
B115: 80
B116: 81
B117: 82
B118: 83
B119: 84
B120: 85
B121: 86
B122: 87
B123: 88
B124: 89
B125: 90
B126: 91
B127: 92
B128: 93
B129: 94
B130: 95
B131: 96
B132: 97
B133: 98
B134: 99
B135: 100
B136: 101
B137: 102
B138: 103
B139: 104
B140: 105
B141: 106
B142: 107
B143: 108
B144: 109
B145: 110
B146: 111
B147: 112
B148: 113
B149: 114
B150: 115
B151: 116
B152: 117
B153: 118
B154: 119
B155: 120
B156: 121
B157: 122
B158: 123
B159: 124
B160: 125
B161: 126
B162: 127
B163: 128
B164: 129 | D164: =IF(B164<=$C$20,WEEKDAY(C164,2),"") ->  | J164: =IF(B164>C$20,"",((1+C$25)^(F164/360)-1)*H164) ->  | K164: =IF(B164>C$20,"",C$27*C$28) ->  | L164: =IF(B164>C$20,"",C$29) ->  | N164: =IF(B164>C$20,"",H164-I164) ->  | O164: =IFERROR(IF(AND(MONTH(E164)=7,C$23=2),2/(1+C$26)^(G164/360),IF(AND(MONTH(E164)=12,C$24=2),2/(1+C$26)^(G164/360),1/(1+C$26)^(G164/360))),"") ->  | P164: =IFERROR(1/(1+C$26)^(G164/360),"") ->  | S164: =G164 ->  | T164: =IFERROR((1+C$32)^(S164/360),"") ->  | U164: =IFERROR(ROUND(R164/T164,2),"") -> 
B165: 130 | C165: =IF(B165>$C$20,"",EDATE(C164,1)) ->  | E165: =IF(D165=7,C165+1,C165) ->  | F165: =IF(B165>C$20,"",E165-E164) ->  | G165: =IFERROR(F165+G164,"") ->  | H165: =IF(B165>C$20,"",N164) ->  | I165: =IF(B165>C$20,"",M165-L165-K165-J165) ->  | M165: =IF(B165>C$20,"",IF(B165=C$20,H165+J165+K165+L165,IF(AND(C$23=2,MONTH(E165)=7),2*C$30,IF(AND(C$24=2,MONTH(E165)=12),2*C$30,C$30)))) ->  | R165: =IFERROR(I165+J165+K165+L165,"") -> 
B166: 131
B167: 132
B168: 133
B169: 134
B170: 135
B171: 136
B172: 137
B173: 138
B174: 139
B175: 140
B176: 141
B177: 142
B178: 143
B179: 144
B180: 145
B181: 146
B182: 147
B183: 148
B184: 149
B185: 150
B186: 151
B187: 152
B188: 153
B189: 154
B190: 155
B191: 156
B192: 157
B193: 158
B194: 159
B195: 160
B196: 161
B197: 162
B198: 163
B199: 164
B200: 165
B201: 166
B202: 167
B203: 168
B204: 169
B205: 170
B206: 171
... 189 more rows

Sheet Proceso Prima de Seguro (hidden)
D2: Proceso de Cálculo de la Prima de Seguros
B7: 1) Datos esenciales del préstamo | G7: 3) Calculo del valor presente del Seguro
B9: Producto | D9: ='Vista Principal'!C9 -> Préstamos Personales (LD Y PA) (Clientes) | G9: Suma de Prima Mensual | H9: =SUM(L36:L395) -> 564.94
B10: Tipo de Seguro | D10: ='Vista Principal'!C10 -> Seguro de Desgravamen | G10: VPN - Valor Presente | H10: =NPV(D16,L36:L395) -> 550.40
B11: Tarifa | D11: ='Vista Principal'!C11 -> TARIFA TITULAR
B12: Monto inicial | D12: ='Vista Principal'!C12 -> 20,000.00 | G12: 4) Calculo del Monto Adicional del Seguro y MAF
B13: =D10 -> Seguro de Desgravamen | C13: =+CONCATENATE(D9,D10,D11) -> Préstamos Personales (LD Y PA) (Clientes)Seguro de DesgravamenTARIFA TITULAR | D13: =VLOOKUP(C13,CAPUCCI,2,0) -> 0.1995%
B14: Monto adicional Seguro de Desgravamen/ Vida | G14: Monto inicial | H14: =D12 -> 20,000.00
B15: MAF Inicial | D15: =D12+D14 -> 20,000 | G15: Monto adicional de Desgravamen / Vida | H15: =H10 -> 550.40
B16: Costo Capital | D16: =INDEX(_xlfn._xlws.FILTER(Tabla2[],Tabla2[TARIFA]=D11),0,2) -> 0.2871% | G16: Prima de Seguro de Desgravamen / Vida | H16: =H15/H14 -> 2.7520%
B17: Moneda | D17: ='Vista Principal'!C19 -> Soles | G17: MAF Inicial | H17: =H14+H15 -> 20,550.40
B18: Plazo Remanente Meses | D18: ='Vista Principal'!C20 -> 24
B19: Fecha de Desembolso | D19: ='Vista Principal'!C21 -> 2023-09-07
B20: Fecha de 1er Pago | D20: ='Vista Principal'!C22 -> 2023-10-07
B21: Cuota Julio | D21: ='Vista Principal'!C23 -> 1
B22: Cuota Diciembre | D22: ='Vista Principal'!C24 -> 1
B23: TEA | D23: ='Vista Principal'!C25 -> 40.00%
B24: TEA TOTAL | D24: =(1+(((1+D23)^(30/360)-1)+D13))^12-1 -> 43.29%
B25: Monto del Bien | D25: 0
B26: Seguro del Bien | D26: 0.0000%
B27: Portes | D27: 0
B28: Cuota | D28: =(D15+(D26*D25+D27)*R34)/Q34 -> 1,192.48
B30: TCEA | D30: 23.73%
W31: =D15-W34-D14 -> -3,026.41
B33: 2) Creación de Cronograma de prima mensual
Q34: =SUM(Q36:Q395) -> 16.77 | R34: =SUM(R36:R395) -> 16.77 | W34: =SUM(W36:W395) -> 23,026.41
B35: N° Cuota | D35: Fecha de pago | E35: Día | F35: Fecha de pago | G35: Días | H35: Dias Acumulados | I35: Saldo Inicial | J35: Amortización | K35: Interés | L35: Seguro Desgravamen | M35: Seguro del Bien | N35: Portes | O35: Cuota Constante | P35: Saldo Final | Q35: Factor Cronograma | R35: Factor Cronograma 2 | T35: Vector i,1 Cuota | U35: Vector i,2 Días Acum | V35: Vector i,3 Factor | W35: Vector i,4 Calculo VA | X35: VPN - Valor Presente | Y35: VPN - Valor Presente
B36: 1 | D36: =D20 -> 2023-10-07 | E36: =IF(B36<=$D$18,WEEKDAY(D36,2),"") -> 6 | F36: =IF(E36=7,D36+1,D36) -> 2023-10-07 | G36: =F36-D19 -> 30 | H36: =G36 -> 30 | I36: =D15 -> 20,000.00 | J36: =IF(B36>D$18,"",O36-N36-M36-L36-K36) -> 583.85 | K36: =IF(B36>D$18,"",((1+D$23)^(G36/360)-1)*I36) -> 568.72 | L36: =IF(B36>D$18,"",((1+D$13)^(G36/30)-1)*I36) -> 39.90 | M36: =IF(B36>D$18,"",D$25*D$26) -> 0.00 | N36: =IF(B36>D$18,"",D$27) -> 0 | O36: =IF(B36>D$18,"",IF(B36=D$18,I36+K36+L36+M36+N36,IF(AND(D$21=2,MONTH(F36)=7),2*D$28,IF(AND(D$22=2,MONTH(F36)=12),2*D$28,D$28)))) -> 1,192.48 | P36: =IF(B36>D$18,"",I36-J36) -> 19,416.15 | Q36: =IFERROR(IF(AND(MONTH(F36)=7,D$21=2),2/(1+D$24)^(H36/360),IF(AND(MONTH(F36)=12,D$22=2),2/(1+D$24)^(H36/360),1/(1+D$24)^(H36/360))),"") -> 0.97 | R36: =IFERROR(1/(1+D$24)^(H36/360),"") -> 0.97 | T36: =IFERROR(J36+K36+L36+M36+N36,"") -> 1192.477869 | U36: =H36 -> 30 | V36: =IFERROR((1+D$30)^(U36/360),"") -> 1.02 | W36: =IFERROR(ROUND(T36/V36,2),"") -> 1,171.50 | X36: =L36/(1+$I$9) -> 39.90 | Y36: =L36/(1+$Q$28) -> 39.90
B37: 2 | D37: =IF(B37>$D$18,"",EDATE(D36,1)) -> 2023-11-07 | E37: 2 | F37: =IF(E37=7,D37+1,D37) -> 2023-11-07 | G37: =IF(B37>D$18,"",F37-F36) -> 31 | H37: =IFERROR(G37+H36,"") -> 61 | I37: =IF(B37>D$18,"",P36) -> 19,416.15 | J37: 581.66 | K37: 570.79 | L37: =IF(B37>D$18,"",((1+D$13)^(G37/30)-1)*I37) -> 40.03 | M37: 0.00 | N37: 0 | O37: 1,192.48 | P37: 18,834.49 | Q37: 0.94 | R37: 0.94 | T37: 1192.477869 | U37: 61 | V37: 1.04 | W37: 1,150.22 | X37: =IF(O37="",0,L37/((1+$I$9)^B37)) -> 40.03 | Y37: =IF(O37="",0,L37/((1+$Q$28)^B37)) -> 40.03
B38: 3 | D38: 2023-12-07 | E38: 4 | F38: 2023-12-07 | G38: 30 | H38: 91 | I38: 18,834.49 | J38: 619.32 | K38: 535.58 | L38: 37.57 | M38: 0.00 | N38: 0 | O38: 1,192.48 | P38: 18,215.16 | Q38: 0.91 | R38: 0.91 | T38: 1192.477869 | U38: 91 | V38: 1.06 | W38: 1,129.99 | X38: 37.57 | Y38: 37.57
B39: 4 | D39: 2024-01-07 | E39: 7 | F39: 2024-01-08 | G39: 32 | H39: 123 | I39: 18,215.16 | J39: 600.69 | K39: 553.02 | L39: 38.76 | M39: 0.00 | N39: 0 | O39: 1,192.48 | P39: 17,614.47 | Q39: 0.88 | R39: 0.88 | T39: 1192.477869 | U39: 123 | V39: 1.08 | W39: 1,108.80 | X39: 38.76 | Y39: 38.76
B40: 5 | D40: 2024-02-07 | E40: 3 | F40: 2024-02-07 | G40: 30 | H40: 153 | I40: 17,614.47 | J40: 656.45 | K40: 500.89 | L40: 35.14 | M40: 0.00 | N40: 0 | O40: 1,192.48 | P40: 16,958.02 | Q40: 0.86 | R40: 0.86 | T40: 1192.477869 | U40: 153 | V40: 1.09 | W40: 1,089.30 | X40: 35.14 | Y40: 35.14
B41: 6 | D41: 2024-03-07 | E41: 4 | F41: 2024-03-07 | G41: 29 | H41: 182 | I41: 16,958.02 | J41: 693.85 | K41: 465.93 | L41: 32.70 | M41: 0.00 | N41: 0 | O41: 1,192.48 | P41: 16,264.17 | Q41: 0.83 | R41: 0.83 | T41: 1192.477869 | U41: 182 | V41: 1.11 | W41: 1,070.77 | X41: 32.70 | Y41: 32.70
B42: 7 | D42: 2024-04-07 | E42: 7 | F42: 2024-04-08 | G42: 32 | H42: 214 | I42: 16,264.17 | J42: 664.08 | K42: 493.79 | L42: 34.61 | M42: 0.00 | N42: 0 | O42: 1,192.48 | P42: 15,600.10 | Q42: 0.81 | R42: 0.81 | T42: 1192.477869 | U42: 214 | V42: 1.13 | W42: 1,050.70 | X42: 34.61 | Y42: 34.61
B43: 8 | D43: 2024-05-07 | E43: 2 | F43: 2024-05-07 | G43: 29 | H43: 243 | I43: 15,600.10 | J43: 733.78 | K43: 428.62 | L43: 30.08 | M43: 0.00 | N43: 0 | O43: 1,192.48 | P43: 14,866.32 | Q43: 0.78 | R43: 0.78 | T43: 1192.477869 | U43: 243 | V43: 1.15 | W43: 1,032.83 | X43: 30.08 | Y43: 30.08
B44: 9 | D44: 2024-06-07 | E44: 5 | F44: 2024-06-07 | G44: 31 | H44: 274 | I44: 14,866.32 | J44: 724.79 | K44: 437.04 | L44: 30.65 | M44: 0.00 | N44: 0 | O44: 1,192.48 | P44: 14,141.53 | Q44: 0.76 | R44: 0.76 | T44: 1192.477869 | U44: 274 | V44: 1.18 | W44: 1,014.06 | X44: 30.65 | Y44: 30.65
B45: 10 | D45: 2024-07-07 | E45: 7 | F45: 2024-07-08 | G45: 31 | H45: 305 | I45: 14,141.53 | J45: 747.59 | K45: 415.73 | L45: 29.15 | M45: 0.00 | N45: 0 | O45: 1,192.48 | P45: 13,393.93 | Q45: 0.74 | R45: 0.74 | T45: 1192.477869 | U45: 305 | V45: 1.20 | W45: 995.64 | X45: 29.15 | Y45: 29.15
B46: 11 | D46: 2024-08-07 | E46: 3 | F46: 2024-08-07 | G46: 30 | H46: 335 | I46: 13,393.93 | J46: 784.88 | K46: 380.87 | L46: 26.72 | M46: 0.00 | N46: 0 | O46: 1,192.48 | P46: 12,609.05 | Q46: 0.72 | R46: 0.72 | T46: 1192.477869 | U46: 335 | V46: 1.22 | W46: 978.13 | X46: 26.72 | Y46: 26.72
B47: 12 | D47: 2024-09-07 | E47: 6 | F47: 2024-09-07 | G47: 31 | H47: 366 | I47: 12,609.05 | J47: 795.80 | K47: 370.68 | L47: 25.99 | M47: 0.00 | N47: 0 | O47: 1,192.48 | P47: 11,813.24 | Q47: 0.69 | R47: 0.69 | T47: 1192.477869 | U47: 366 | V47: 1.24 | W47: 960.35 | X47: 25.99 | Y47: 25.99
B48: 13 | D48: 2024-10-07 | E48: 1 | F48: 2024-10-07 | G48: 30 | H48: 396 | I48: =IF(B48>D$18,"",P47) -> 11,813.24 | J48: =IF(B48>D$18,"",O48-N48-M48-L48-K48) -> 832.99 | K48: =IF(B48>D$18,"",((1+D$23)^(G48/360)-1)*I48) -> 335.92 | L48: 23.57 | M48: 0.00 | N48: 0 | O48: 1,192.48 | P48: =IF(B48>D$18,"",I48-J48) -> 10,980.26 | Q48: 0.67 | R48: 0.67 | T48: =IFERROR(J48+K48+L48+M48+N48,"") -> 1192.477869 | U48: 396 | V48: 1.26 | W48: 943.46 | X48: 23.57 | Y48: =IF(O48="",0,L48/((1+$Q$28)^B48)) -> 23.57
B49: 14 | D49: 2024-11-07 | E49: 4 | F49: 2024-11-07 | G49: 31 | H49: 427 | I49: 10,980.26 | J49: 847.05 | K49: 322.80 | L49: 22.64 | M49: 0.00 | N49: 0 | O49: 1,192.48 | P49: 10,133.21 | Q49: 0.65 | R49: 0.65 | T49: 1192.477869 | U49: 427 | V49: 1.29 | W49: 926.32 | X49: 22.64 | Y49: 22.64
B50: 15 | D50: 2024-12-07 | E50: 6 | F50: 2024-12-07 | G50: 30 | H50: 457 | I50: 10,133.21 | J50: 884.11 | K50: 288.15 | L50: 20.22 | M50: 0.00 | N50: 0 | O50: 1,192.48 | P50: 9,249.10 | Q50: 0.63 | R50: 0.63 | T50: 1192.477869 | U50: 457 | V50: 1.31 | W50: 910.03 | X50: 20.22 | Y50: 20.22
B51: 16 | D51: 2025-01-07 | E51: 2 | F51: 2025-01-07 | G51: 31 | H51: 488 | I51: 9,249.10 | J51: 901.51 | K51: 271.90 | L51: 19.07 | M51: 0.00 | N51: 0 | O51: 1,192.48 | P51: 8,347.59 | Q51: 0.61 | R51: 0.61 | T51: 1192.477869 | U51: 488 | V51: 1.33 | W51: 893.49 | X51: 19.07 | Y51: 19.07
B52: 17 | D52: 2025-02-07 | E52: 5 | F52: 2025-02-07 | G52: 31 | H52: 519 | I52: 8,347.59 | J52: 929.87 | K52: 245.40 | L52: 17.21 | M52: 0.00 | N52: 0 | O52: 1,192.48 | P52: 7,417.72 | Q52: 0.60 | R52: 0.60 | T52: 1192.477869 | U52: 519 | V52: 1.36 | W52: 877.26 | X52: 17.21 | Y52: 17.21
B53: 18 | D53: 2025-03-07 | E53: 5 | F53: 2025-03-07 | G53: 28 | H53: 547 | I53: 7,417.72 | J53: 981.98 | K53: 196.68 | L53: 13.81 | M53: 0.00 | N53: 0 | O53: 1,192.48 | P53: 6,435.74 | Q53: 0.58 | R53: 0.58 | T53: 1192.477869 | U53: 547 | V53: 1.38 | W53: 862.85 | X53: 13.81 | Y53: 13.81
B54: 19 | D54: 2025-04-07 | E54: 1 | F54: 2025-04-07 | G54: 31 | H54: 578 | I54: 6,435.74 | J54: 990.01 | K54: 189.20 | L54: 13.27 | M54: 0.00 | N54: 0 | O54: 1,192.48 | P54: 5,445.73 | Q54: 0.56 | R54: 0.56 | T54: 1192.477869 | U54: 578 | V54: 1.41 | W54: 847.17 | X54: 13.27 | Y54: 13.27
B55: 20 | D55: 2025-05-07 | E55: 3 | F55: 2025-05-07 | G55: 30 | H55: 608 | I55: 5,445.73 | J55: 1,026.76 | K55: 154.86 | L55: 10.86 | M55: 0.00 | N55: 0 | O55: 1,192.48 | P55: 4,418.97 | Q55: 0.54 | R55: 0.54 | T55: 1192.477869 | U55: 608 | V55: 1.43 | W55: 832.27 | X55: 10.86 | Y55: 10.86
B56: 21 | D56: 2025-06-07 | E56: 6 | F56: 2025-06-07 | G56: 31 | H56: 639 | I56: 4,418.97 | J56: 1,053.46 | K56: 129.91 | L56: 9.11 | M56: 0.00 | N56: 0 | O56: 1,192.48 | P56: 3,365.51 | Q56: 0.53 | R56: 0.53 | T56: 1192.477869 | U56: 639 | V56: 1.46 | W56: 817.15 | X56: 9.11 | Y56: 9.11
B57: 22 | D57: 2025-07-07 | E57: 1 | F57: 2025-07-07 | G57: 30 | H57: 669 | I57: 3,365.51 | J57: 1,090.06 | K57: 95.70 | L57: 6.71 | M57: 0.00 | N57: 0 | O57: 1,192.48 | P57: 2,275.45 | Q57: 0.51 | R57: 0.51 | T57: 1192.477869 | U57: 669 | V57: 1.49 | W57: 802.78 | X57: 6.71 | Y57: 6.71
B58: 23 | D58: 2025-08-07 | E58: 4 | F58: 2025-08-07 | G58: 31 | H58: 700 | I58: 2,275.45 | J58: 1,120.89 | K58: 66.89 | L58: 4.69 | M58: 0.00 | N58: 0 | O58: 1,192.48 | P58: 1,154.56 | Q58: 0.50 | R58: 0.50 | T58: 1192.477869 | U58: 700 | V58: 1.51 | W58: 788.19 | X58: 4.69 | Y58: 4.69
B59: 24 | D59: 2025-09-07 | E59: 7 | F59: 2025-09-08 | G59: 32 | H59: 732 | I59: 1,154.56 | J59: 1,154.56 | K59: 35.05 | L59: 2.46 | M59: 0.00 | N59: 0 | O59: 1,192.07 | P59: 0 | Q59: 0.48 | R59: 0.48 | T59: 1192.06649 | U59: 732 | V59: 1.54 | W59: 773.15 | X59: 2.46 | Y59: 2.46
B60: 25 | X60: 0 | Y60: 0
B61: 26 | X61: 0 | Y61: 0
B62: 27 | X62: 0 | Y62: 0
B63: 28 | X63: 0 | Y63: 0
B64: 29 | X64: 0 | Y64: 0
B65: 30 | X65: 0 | Y65: 0
B66: 31 | X66: 0 | Y66: 0
B67: 32 | X67: 0 | Y67: 0
B68: 33 | X68: 0 | Y68: 0
B69: 34 | X69: 0 | Y69: 0
B70: 35 | X70: 0 | Y70: 0
B71: 36 | X71: 0 | Y71: 0
B72: 37 | X72: 0 | Y72: 0
B73: 38 | X73: 0 | Y73: 0
B74: 39 | X74: 0 | Y74: 0
B75: 40 | X75: 0 | Y75: 0
B76: 41 | X76: 0 | Y76: 0
B77: 42 | X77: 0 | Y77: 0
B78: 43 | X78: 0 | Y78: 0
B79: 44 | X79: 0 | Y79: 0
B80: 45 | X80: 0 | Y80: 0
B81: 46 | X81: 0 | Y81: 0
B82: 47 | X82: 0 | Y82: 0
B83: 48 | X83: 0 | Y83: 0
B84: 49 | X84: 0 | Y84: 0
B85: 50 | X85: 0 | Y85: 0
B86: 51 | X86: 0 | Y86: 0
B87: 52 | X87: 0 | Y87: 0
B88: 53 | X88: 0 | Y88: 0
B89: 54 | X89: 0 | Y89: 0
B90: 55 | X90: 0 | Y90: 0
B91: 56 | X91: 0 | Y91: 0
B92: 57 | X92: 0 | Y92: 0
B93: 58 | X93: 0 | Y93: 0
B94: 59 | X94: 0 | Y94: 0
B95: 60 | X95: 0 | Y95: 0
B96: 61 | X96: 0 | Y96: 0
B97: 62 | X97: 0 | Y97: 0
B98: 63 | X98: 0 | Y98: 0
B99: 64 | X99: 0 | Y99: 0
B100: 65 | E100: =IF(B100<=$D$18,WEEKDAY(D100,2),"") ->  | J100: =IF(B100>D$18,"",O100-N100-M100-L100-K100) ->  | K100: =IF(B100>D$18,"",((1+D$23)^(G100/360)-1)*I100) ->  | M100: =IF(B100>D$18,"",D$25*D$26) ->  | N100: =IF(B100>D$18,"",D$27) ->  | O100: =IF(B100>D$18,"",IF(B100=D$18,I100+K100+L100+M100+N100,IF(AND(D$21=2,MONTH(F100)=7),2*D$28,IF(AND(D$22=2,MONTH(F100)=12),2*D$28,D$28)))) ->  | P100: =IF(B100>D$18,"",I100-J100) ->  | Q100: =IFERROR(IF(AND(MONTH(F100)=7,D$21=2),2/(1+D$24)^(H100/360),IF(AND(MONTH(F100)=12,D$22=2),2/(1+D$24)^(H100/360),1/(1+D$24)^(H100/360))),"") ->  | R100: =IFERROR(1/(1+D$24)^(H100/360),"") ->  | U100: =H100 ->  | V100: =IFERROR((1+D$30)^(U100/360),"") ->  | W100: =IFERROR(ROUND(T100/V100,2),"") ->  | X100: 0 | Y100: 0
B101: 66 | D101: =IF(B101>$D$18,"",EDATE(D100,1)) ->  | F101: =IF(E101=7,D101+1,D101) ->  | G101: =IF(B101>D$18,"",F101-F100) ->  | H101: =IFERROR(G101+H100,"") ->  | I101: =IF(B101>D$18,"",P100) ->  | L101: =IF(B101>D$18,"",((1+D$13)^(G101/30)-1)*I101) ->  | T101: =IFERROR(J101+K101+L101+M101+N101,"") ->  | X101: =IF(O101="",0,L101/((1+$I$9)^B101)) -> 0 | Y101: 0
B102: 67 | X102: 0 | Y102: =IF(O102="",0,L102/((1+$Q$28)^B102)) -> 0
B103: 68 | X103: 0 | Y103: 0
B104: 69 | X104: 0 | Y104: 0
B105: 70 | X105: 0 | Y105: 0
B106: 71 | X106: 0 | Y106: 0
B107: 72 | X107: 0 | Y107: 0
B108: 73 | X108: 0 | Y108: 0
B109: 74 | X109: 0 | Y109: 0
B110: 75 | X110: 0 | Y110: 0
B111: 76 | X111: 0 | Y111: 0
B112: 77 | X112: 0 | Y112: 0
B113: 78 | X113: 0 | Y113: 0
B114: 79 | X114: 0 | Y114: 0
B115: 80 | X115: 0 | Y115: 0
B116: 81 | X116: 0 | Y116: 0
B117: 82 | X117: 0 | Y117: 0
B118: 83 | X118: 0 | Y118: 0
B119: 84 | X119: 0 | Y119: 0
B120: 85 | X120: 0 | Y120: 0
B121: 86 | X121: 0 | Y121: 0
B122: 87 | X122: 0 | Y122: 0
B123: 88 | X123: 0 | Y123: 0
B124: 89 | X124: 0 | Y124: 0
B125: 90 | X125: 0 | Y125: 0
B126: 91 | X126: 0 | Y126: 0
B127: 92 | X127: 0 | Y127: 0
B128: 93 | X128: 0 | Y128: 0
B129: 94 | X129: 0 | Y129: 0
B130: 95 | X130: 0 | Y130: 0
B131: 96 | X131: 0 | Y131: 0
B132: 97 | X132: 0 | Y132: 0
B133: 98 | X133: 0 | Y133: 0
B134: 99 | X134: 0 | Y134: 0
B135: 100 | X135: 0 | Y135: 0
B136: 101 | X136: 0 | Y136: 0
B137: 102 | X137: 0 | Y137: 0
B138: 103 | X138: 0 | Y138: 0
B139: 104 | X139: 0 | Y139: 0
B140: 105 | X140: 0 | Y140: 0
B141: 106 | X141: 0 | Y141: 0
B142: 107 | X142: 0 | Y142: 0
B143: 108 | X143: 0 | Y143: 0
B144: 109 | X144: 0 | Y144: 0
B145: 110 | X145: 0 | Y145: 0
B146: 111 | X146: 0 | Y146: 0
B147: 112 | X147: 0 | Y147: 0
B148: 113 | X148: 0 | Y148: 0
B149: 114 | X149: 0 | Y149: 0
B150: 115 | X150: 0 | Y150: 0
B151: 116 | X151: 0 | Y151: 0
B152: 117 | X152: 0 | Y152: 0
B153: 118 | X153: 0 | Y153: 0
B154: 119 | X154: 0 | Y154: 0
B155: 120 | X155: 0 | Y155: 0
B156: 121 | X156: 0 | Y156: 0
B157: 122 | X157: 0 | Y157: 0
B158: 123 | X158: 0 | Y158: 0
B159: 124 | X159: 0 | Y159: 0
B160: 125 | X160: 0 | Y160: 0
B161: 126 | X161: 0 | Y161: 0
B162: 127 | X162: 0 | Y162: 0
B163: 128 | X163: 0 | Y163: 0
B164: 129 | E164: =IF(B164<=$D$18,WEEKDAY(D164,2),"") ->  | J164: =IF(B164>D$18,"",O164-N164-M164-L164-K164) ->  | K164: =IF(B164>D$18,"",((1+D$23)^(G164/360)-1)*I164) ->  | M164: =IF(B164>D$18,"",D$25*D$26) ->  | N164: =IF(B164>D$18,"",D$27) ->  | O164: =IF(B164>D$18,"",IF(B164=D$18,I164+K164+L164+M164+N164,IF(AND(D$21=2,MONTH(F164)=7),2*D$28,IF(AND(D$22=2,MONTH(F164)=12),2*D$28,D$28)))) ->  | P164: =IF(B164>D$18,"",I164-J164) ->  | Q164: =IFERROR(IF(AND(MONTH(F164)=7,D$21=2),2/(1+D$24)^(H164/360),IF(AND(MONTH(F164)=12,D$22=2),2/(1+D$24)^(H164/360),1/(1+D$24)^(H164/360))),"") ->  | R164: =IFERROR(1/(1+D$24)^(H164/360),"") ->  | U164: =H164 ->  | V164: =IFERROR((1+D$30)^(U164/360),"") ->  | W164: =IFERROR(ROUND(T164/V164,2),"") ->  | X164: 0 | Y164: 0
B165: 130 | D165: =IF(B165>$D$18,"",EDATE(D164,1)) ->  | F165: =IF(E165=7,D165+1,D165) ->  | G165: =IF(B165>D$18,"",F165-F164) ->  | H165: =IFERROR(G165+H164,"") ->  | I165: =IF(B165>D$18,"",P164) ->  | L165: =IF(B165>D$18,"",((1+D$13)^(G165/30)-1)*I165) ->  | T165: =IFERROR(J165+K165+L165+M165+N165,"") ->  | X165: =IF(O165="",0,L165/((1+$I$9)^B165)) -> 0 | Y165: 0
B166: 131 | X166: 0 | Y166: =IF(O166="",0,L166/((1+$Q$28)^B166)) -> 0
B167: 132 | X167: 0 | Y167: 0
B168: 133 | X168: 0 | Y168: 0
B169: 134 | X169: 0 | Y169: 0
B170: 135 | X170: 0 | Y170: 0
B171: 136 | X171: 0 | Y171: 0
B172: 137 | X172: 0 | Y172: 0
B173: 138 | X173: 0 | Y173: 0
B174: 139 | X174: 0 | Y174: 0
B175: 140 | X175: 0 | Y175: 0
B176: 141 | X176: 0 | Y176: 0
B177: 142 | X177: 0 | Y177: 0
B178: 143 | X178: 0 | Y178: 0
B179: 144 | X179: 0 | Y179: 0
B180: 145 | X180: 0 | Y180: 0
B181: 146 | X181: 0 | Y181: 0
B182: 147 | X182: 0 | Y182: 0
B183: 148 | X183: 0 | Y183: 0
B184: 149 | X184: 0 | Y184: 0
B185: 150 | X185: 0 | Y185: 0
B186: 151 | X186: 0 | Y186: 0
B187: 152 | X187: 0 | Y187: 0
B188: 153 | X188: 0 | Y188: 0
B189: 154 | X189: 0 | Y189: 0
B190: 155 | X190: 0 | Y190: 0
B191: 156 | X191: 0 | Y191: 0
B192: 157 | X192: 0 | Y192: 0
B193: 158 | X193: 0 | Y193: 0
B194: 159 | X194: 0 | Y194: 0
B195: 160 | X195: 0 | Y195: 0
B196: 161 | X196: 0 | Y196: 0
B197: 162 | X197: 0 | Y197: 0
B198: 163 | X198: 0 | Y198: 0
B199: 164 | X199: 0 | Y199: 0
B200: 165 | X200: 0 | Y200: 0
B201: 166 | X201: 0 | Y201: 0
B202: 167 | X202: 0 | Y202: 0
B203: 168 | X203: 0 | Y203: 0
B204: 169 | X204: 0 | Y204: 0
B205: 170 | X205: 0 | Y205: 0
B206: 171 | X206: 0 | Y206: 0
B207: 172 | X207: 0 | Y207: 0
B208: 173 | X208: 0 | Y208: 0
... 187 more rows

Sheet TarifarioBD (hidden)
A1: TARIFA | B1: PRODUCTO | C1: TIPO_SEGURO | D1: Valor | E1: < | F1: Columna2 | H1: TARIFA | I1: PRODUCTO | J1: TIPO_SEGURO
A2: TARIFA TITULAR | B2: Préstamos Personales (DXP) | C2: Seguro de Vida | D2: 4.2000% | E2: Préstamos Personales (DXP)Seguro de VidaTARIFA TITULAR | F2: 4.2000% | H2: TARIFA TITULAR | I2: Préstamos Personales (LD Y PA) (Clientes) | J2: Seguro de Vida
A3: TARIFA TITULAR | B3: Préstamos Personales (DXP) | C3: Seguro de Desgravamen | D3: 0.1832% | E3: Préstamos Personales (DXP)Seguro de DesgravamenTARIFA TITULAR | F3: 0.1832% | H3: TARIFA TITULAR + CONYUGE | J3: Seguro de Desgravamen
A4: TARIFA TITULAR | B4: Préstamos Personales (DXP) | C4: Seguro de Desgravamen con Devolución | D4: 0.2342% | E4: Préstamos Personales (DXP)Seguro de Desgravamen con DevoluciónTARIFA TITULAR | F4: 0.2342% | J4: Seguro de Desgravamen con Devolución
A5: TARIFA TITULAR + CONYUGE | B5: Préstamos Personales (DXP) | C5: Seguro de Vida | D5: 8.4000% | E5: Préstamos Personales (DXP)Seguro de VidaTARIFA TITULAR + CONYUGE | F5: 8.4000%
A6: TARIFA TITULAR + CONYUGE | B6: Préstamos Personales (DXP) | C6: Seguro de Desgravamen | D6: 0.3664% | E6: Préstamos Personales (DXP)Seguro de DesgravamenTARIFA TITULAR + CONYUGE | F6: 0.3664%
A7: TARIFA TITULAR + CONYUGE | B7: Préstamos Personales (DXP) | C7: Seguro de Desgravamen con Devolución | D7: 0.4684% | E7: Préstamos Personales (DXP)Seguro de Desgravamen con DevoluciónTARIFA TITULAR + CONYUGE | F7: 0.4684%
A8: TARIFA TITULAR | B8: Préstamos Personales (LD Y PA) (Clientes) | C8: Seguro de Vida | D8: 3.7000% | E8: Préstamos Personales (LD Y PA) (Clientes)Seguro de VidaTARIFA TITULAR | F8: 3.7000%
A9: TARIFA TITULAR | B9: Préstamos Personales (LD Y PA) (Clientes) | C9: Seguro de Desgravamen | D9: 0.1995% | E9: Préstamos Personales (LD Y PA) (Clientes)Seguro de DesgravamenTARIFA TITULAR | F9: 0.1995%
A10: TARIFA TITULAR | B10: Préstamos Personales (LD Y PA) (Clientes) | C10: Seguro de Desgravamen con Devolución | D10: 0.2594% | E10: Préstamos Personales (LD Y PA) (Clientes)Seguro de Desgravamen con DevoluciónTARIFA TITULAR | F10: 0.2594%
A11: TARIFA TITULAR + CONYUGE | B11: Préstamos Personales (LD Y PA) (Clientes) | C11: Seguro de Vida | D11: 7.4000% | E11: Préstamos Personales (LD Y PA) (Clientes)Seguro de VidaTARIFA TITULAR + CONYUGE | F11: 7.4000%
A12: TARIFA TITULAR + CONYUGE | B12: Préstamos Personales (LD Y PA) (Clientes) | C12: Seguro de Desgravamen | D12: 0.3990% | E12: Préstamos Personales (LD Y PA) (Clientes)Seguro de DesgravamenTARIFA TITULAR + CONYUGE | F12: 0.3990%
A13: TARIFA TITULAR + CONYUGE | B13: Préstamos Personales (LD Y PA) (Clientes) | C13: Seguro de Desgravamen con Devolución | D13: 0.5188% | E13: Préstamos Personales (LD Y PA) (Clientes)Seguro de Desgravamen con DevoluciónTARIFA TITULAR + CONYUGE | F13: 0.5188%
A14: TARIFA TITULAR | B14: Préstamos Personales (LD Y PA) (Empleados) | C14: Seguro de Vida | D14: 1.5866% | E14: Préstamos Personales (LD Y PA) (Empleados)Seguro de VidaTARIFA TITULAR | F14: 1.5866%
A15: TARIFA TITULAR | B15: Préstamos Personales (LD Y PA) (Empleados) | C15: Seguro de Desgravamen | D15: 0.0855% | E15: Préstamos Personales (LD Y PA) (Empleados)Seguro de DesgravamenTARIFA TITULAR | F15: 0.0855%
A16: TARIFA TITULAR | B16: Préstamos Personales (LD Y PA) (Empleados) | C16: Seguro de Desgravamen con Devolución | D16: 0.1112% | E16: Préstamos Personales (LD Y PA) (Empleados)Seguro de Desgravamen con DevoluciónTARIFA TITULAR | F16: 0.1112%
A17: TARIFA TITULAR + CONYUGE | B17: Préstamos Personales (LD Y PA) (Empleados) | C17: Seguro de Vida | D17: 3.1732% | E17: Préstamos Personales (LD Y PA) (Empleados)Seguro de VidaTARIFA TITULAR + CONYUGE | F17: 3.1732%
A18: TARIFA TITULAR + CONYUGE | B18: Préstamos Personales (LD Y PA) (Empleados) | C18: Seguro de Desgravamen | D18: 0.1710% | E18: Préstamos Personales (LD Y PA) (Empleados)Seguro de DesgravamenTARIFA TITULAR + CONYUGE | F18: 0.1710%
A19: TARIFA TITULAR + CONYUGE | B19: Préstamos Personales (LD Y PA) (Empleados) | C19: Seguro de Desgravamen con Devolución | D19: 0.2224% | E19: Préstamos Personales (LD Y PA) (Empleados)Seguro de Desgravamen con DevoluciónTARIFA TITULAR + CONYUGE | F19: 0.2224%

Sheet CostoCapBD (hidden)
A1: TARIFA | B1: CostoCapital
A2: TARIFA TITULAR | B2: 0.2871%
A3: TARIFA TITULAR + CONYUGE | B3: 0.2871%
